fUST/lending_fUST_20240805
["ID","MTS","AMOUNT","RATE_DAILY","PERIOD"]
[334249112,1722862248901,-888.41,0.00041095,31]
[334249113,1722862248911,-5000.0,0.00041095,120]
[334249114,1722862248920,-572.32,0.00041095,31]
[334249115,1722862248929,-500.0,0.00041095,60]
[334249116,1722862248938,-500.0,0.00041095,60]
[334249117,1722862248947,-500.0,0.00041095,31]
[334249118,1722862248957,-500.0,0.00041095,60]
[334249119,1722862248967,-500.0,0.00041095,60]
[334249120,1722862248977,-500.0,0.00041095,60]
[334249121,1722862248987,-500.0,0.00041095,31]
[334249122,1722862248997,-4544.64,0.00041095,31]
[334249123,1722862249008,-500.0,0.00041095,31]
[334249124,1722862249018,-500.0,0.00041095,31]
[334249125,1722862249031,-500.0,0.00041095,31]
[334249126,1722862249046,-271.08905745,0.00041095,31]
[334249127,1722862249056,-718.24,0.00041095,31]
[334249128,1722862249067,-500.0,0.00041095,31]
[334249129,1722862249077,-500.0,0.00041095,31]
[334249130,1722862249090,-500.0,0.00041095,31]
[334249131,1722862249101,-500.0,0.00041095,31]
[334249132,1722862249112,-500.0,0.00041095,31]
[334249133,1722862249123,-494.0,0.00041095,31]
[334249134,1722862249134,-875.88,0.00041095,31]
[334249135,1722862249144,-588.32,0.00041095,31]
[334249136,1722862249155,-1868.6,0.00041095,31]
[334249137,1722862249167,-500.0,0.00041095,31]
[334249138,1722862249177,-942.88,0.00041095,31]
[334249139,1722862249187,-500.0,0.00041095,31]
[334249140,1722862249198,-500.0,0.00041095,31]
[334249141,1722862249207,-1570.68,0.00041095,31]
[334249142,1722862249218,-739.34,0.00041095,31]
[334249143,1722862249228,-831.84,0.00041095,31]
[334249144,1722862249238,-500.0,0.00041095,31]
[334249145,1722862249248,-500.0,0.00041095,31]
[334249146,1722862249258,-500.0,0.00041095,31]
[334249147,1722862249269,-500.0,0.00041095,31]
[334249148,1722862249286,-654.96835976,0.00041269,2]
[334249149,1722862249296,-150.0,0.00041502,2]
[334249150,1722862249306,-642.326,0.00041502,2]
[334249151,1722862249316,-500.0,0.00041542,60]
[334249152,1722862249326,-12439.13710617,0.00041543,15]
[334249153,1722862249337,-654.96835976,0.00041543,2]
[334249154,1722862249348,-22434.13740818,0.00041543,5]
[334249155,1722862249359,-154.52988381,0.00041543,2]
[334249156,1722862249369,-600.0,0.00041556,2]
[334249157,1722862249379,-150.5,0.0004162,120]
[334249158,1722862249388,-150.5,0.0004163,120]
[334249159,1722862249398,-1684.57269009,0.00041632,5]
[334249160,1722862249408,-230.08,0.00041633,120]
[334249161,1722862249418,-8422.86345045,0.00041633,5]
[334249162,1722862249428,-150.5,0.0004164,120]
[334249163,1722862249438,-500.0,0.00041642,60]
[334249164,1722862249448,-500.0,0.00041642,60]
[334249165,1722862249459,-500.0,0.00041642,60]
[334249166,1722862249468,-500.0,0.00041642,60]
[334249167,1722862249478,-151.0,0.00041643,14]
[334249168,1722862249488,-500.0,0.00041643,31]
[334249169,1722862249498,-151.0,0.00041643,14]
[334249170,1722862249508,-151.0,0.00041643,14]
[334249171,1722862249517,-151.0,0.00041643,14]
[334249172,1722862249529,-500.0,0.00041643,31]
[334249173,1722862249539,-500.0,0.00041643,31]
[334249174,1722862249548,-240.889953,0.00041643,14]
[334249175,1722862249558,-240.889953,0.00041643,14]
[334249176,1722862249567,-500.0,0.00041643,31]
[334249177,1722862249577,-272.71820398,0.00041643,31]
[334249178,1722862249587,-151.0,0.00041643,14]
[334249179,1722862249597,-500.0,0.00041643,31]
[334249180,1722862249608,-1955.05,0.00041643,31]
[334249181,1722862249618,-500.0,0.00041643,31]
[334249182,1722862249628,-500.0,0.00041643,31]
[334249183,1722862249638,-500.0,0.00041643,31]
[334249184,1722862249648,-1528.13,0.00041643,31]
[334249185,1722862249659,-500.0,0.00041643,31]
[334249186,1722862249668,-500.0,0.00041643,31]
[334249187,1722862249678,-151.0,0.00041643,14]
[334249188,1722862249689,-498.087345,0.00041643,14]
[334249189,1722862249698,-498.087345,0.00041643,14]
[334249190,1722862249708,-151.0,0.00041643,14]
[334249191,1722862249718,-498.087345,0.00041643,14]
[334249192,1722862249728,-500.0,0.00041643,31]
[334249193,1722862249737,-498.087345,0.00041643,14]
[334249194,1722862249747,-500.0,0.00041643,31]
[334249195,1722862249757,-500.0,0.00041643,31]
[334249196,1722862249767,-500.0,0.00041643,31]
[334249197,1722862249777,-156.162223,0.00041643,14]
[334249198,1722862249789,-500.0,0.00041643,31]
[334249199,1722862249798,-156.162223,0.00041643,14]
[334249200,1722862249808,-155.644938,0.00041643,14]
[334249201,1722862249818,-608.87,0.00041643,31]
[334249202,1722862249828,-797.02,0.00041643,31]
[334249203,1722862249838,-500.0,0.00041643,31]
[334249204,1722862249848,-500.0,0.00041643,31]
[334249205,1722862249857,-500.0,0.00041643,31]
[334249206,1722862249868,-500.0,0.00041643,31]
[334249207,1722862249878,-566.64,0.00041643,31]
[334249208,1722862249887,-500.0,0.00041643,31]
[334249209,1722862249898,-500.0,0.00041643,31]
[334249210,1722862249908,-187.17371259,0.00041643,31]
[334249211,1722862249917,-677.86,0.00041643,31]
[334249212,1722862249927,-631.63,0.00041643,31]
[334249213,1722862249936,-500.0,0.00041643,31]
[334249214,1722862249946,-633.87004,0.00041643,14]
[334249215,1722862249956,-633.87004,0.00041643,14]
[334249216,1722862249966,-500.0,0.00041643,31]
[334249217,1722862249975,-633.87004,0.00041643,14]
[334249218,1722862249986,-633.87004,0.00041643,14]
[334249219,1722862249995,-500.0,0.00041643,31]
[334249220,1722862250005,-739.46,0.00041643,31]
[334249221,1722862250014,-151.0,0.00041643,14]
[334249222,1722862250024,-151.912403,0.00041643,14]
[334249223,1722862250037,-500.0,0.00041643,31]
[334249224,1722862250047,-863.99,0.00041643,31]
[334249225,1722862250057,-500.0,0.00041643,31]
[334249226,1722862250066,-229.36681314,0.00041643,31]
[334249227,1722862250076,-500.0,0.00041643,31]
[334249228,1722862250087,-500.0,0.00041643,31]
[334249229,1722862250097,-906.57,0.00041643,31]
[334249230,1722862250107,-500.0,0.00041643,31]
[334249231,1722862250116,-349.365679,0.00041643,14]
[334249232,1722862250126,-349.365679,0.00041643,14]
[334249233,1722862250135,-349.365679,0.00041643,14]
[334249234,1722862250145,-349.365679,0.00041643,14]
[334249235,1722862250155,-500.0,0.00041643,31]
[334249236,1722862250164,-500.0,0.00041643,31]
[334249237,1722862250174,-305.66652419,0.00041643,31]
[334249238,1722862250184,-822.06,0.00041643,31]
[334249239,1722862250194,-500.0,0.00041643,31]
[334249240,1722862250204,-500.0,0.00041643,31]
[334249241,1722862250214,-500.0,0.00041643,31]
[334249242,1722862250224,-598.96862075,0.00041643,31]
[334249243,1722862250248,-15.56137925,0.00041643,31]
[334249244,1722862250258,-303.54862075,0.00041643,31]
[334249245,1722862259155,540.58076781,0.00027396,2]
[334249246,1722862268609,215.7100545,0.00027396,2]
[334249247,1722862276518,153.0,0.00036916,2]
[334249248,1722862277045,153.0,0.00036916,2]
[334249249,1722862278164,153.0,0.00036916,2]
[334249252,1722862318699,4031.4265064,0.00036916,4]
[334249253,1722862318720,1586.07114634,0.00036916,4]
[334249254,1722862320838,2668.91447304,0.00036916,30]
[334249255,1722862320863,2331.08552696,0.00036916,30]
[334249256,1722862321876,214.0248526,0.00036916,5]
[334249257,1722862327578,254.63533274,0.00036916,4]
[334249258,1722862328985,284.83809153,0.00036916,3]
[334249259,1722862333893,154.72922386,0.00036916,4]
[334249260,1722862335507,151.0,0.0003,120]
[334249261,1722862336085,151.0,0.0003274,120]
[334249262,1722862336660,151.0,0.00035479,120]
[334249268,1722863233108,-157.201519,0.00014247,2]
[334249269,1722863233129,-300.10202598,0.0002,2]
[334249270,1722863233150,-154.80649189,0.00021011,2]
[334249271,1722863233176,-5795.1898,0.00021048,2]
[334249273,1722863237486,-1294.04040416,0.00021048,2]
[334249275,1722863346107,-154.77557542,0.00020999,2]
[334249276,1722863346129,-1382.92970052,0.00020999,2]
[334249277,1722863346150,-154.71377951,0.00021011,2]
[334249278,1722863346170,-845.54644341,0.00021011,2]
[334249279,1722863346190,-269.69558364,0.00021011,2]
[334249280,1722863346210,-154.79103211,0.00021011,2]
[334249281,1722863346231,-666.38311444,0.00021011,2]
[334249282,1722863346252,-154.79103211,0.00021048,2]
[334249283,1722863346273,-287.79610663,0.00021048,2]
[334249284,1722863346294,-159.96841318,0.00021048,2]
[334249285,1722863346315,-218.784043,0.00021048,2]
[334249286,1722863346335,-600.90391779,0.0002142,2]
[334249287,1722863346355,-8082.37637436,0.00021609,2]
[334249288,1722863346377,-154.79103211,0.00021609,2]
[334249289,1722863346398,-168.878791,0.00022264,2]
[334249290,1722863346420,-5452.32049857,0.00025,30]
[334249291,1722863346441,-232.14118712,0.00025512,2]
[334249292,1722863346463,-1931.06605103,0.00025512,2]
[334249293,1722863346485,-157.201519,0.00029589,2]
[334249294,1722863346506,-294.23334832,0.00030656,2]
[334249295,1722863346527,-1737.5995898,0.00031051,2]
[334249296,1722863346553,-153.0,0.00033,2]
[334249297,1722863346574,-153.0,0.00033151,2]
[334249298,1722863346596,-153.0,0.00034521,2]
[334249299,1722863346619,-2889.0,0.0003497,2]
[334249300,1722863346650,-254.63533274,0.00035479,4]
[334249301,1722863346672,-153.0,0.00036247,2]
[334249302,1722863347304,154.79103211,0.00021011,2]
[334249303,1722863364411,1363.34392567,0.00025512,2]
[334249444,1722863432613,-151.0,0.00030775,14]
[334249446,1722863432623,-151.0,0.00038219,120]
[334249447,1722863432633,-153.0,0.00038663,14]
[334249449,1722863432643,-1000.0,0.0004,40]
[334249450,1722863432654,-200.0,0.0004,2]
[334249451,1722863432663,-207.0130742,0.00040466,2]
[334249454,1722863432680,-207.0130742,0.00040466,2]
[334249455,1722863432697,-207.0130742,0.00040466,2]
[334249457,1722863432707,-207.0130742,0.00040466,2]
[334249458,1722863432717,-4914.35480401,0.00040528,2]
[334249460,1722863432730,-2490.45,0.00040528,2]
[334249461,1722863432744,-8988.23805467,0.00040528,2]
[334249462,1722863432754,-650.78406163,0.00040859,28]
[334249463,1722863432764,-151.0,0.00040959,120]
[334249464,1722863432774,-528.24970628,0.00040995,2]
[334249465,1722863432784,-2000.0,0.00040995,2]
[334249466,1722863432793,-500.0,0.00040999,120]
[334249467,1722863432803,-467.47126406,0.00041,41]
[334249503,1722863437804,-4532.52873594,0.00041,41]
[334249504,1722863437814,-2352.82902355,0.00041,60]
[334249505,1722863437824,-6868.0,0.00041,120]
[334249506,1722863437834,-1000.0,0.00041,41]
[334249507,1722863437847,-150.5,0.00041066,120]
[334249508,1722863437857,-3847.77144343,0.00041069,2]
[334249509,1722863437867,-150.5,0.00041076,120]
[334249510,1722863437877,-153.0,0.00041079,14]
[334249511,1722863437887,-3036.94,0.00041085,3]
[334249512,1722863437897,-5791.24,0.00041085,3]
[334249513,1722863437907,-14524.1193138,0.00041085,5]
[334249514,1722863437916,-150.5,0.00041086,120]
[334249515,1722863437926,-500.0,0.00041094,31]
[334249516,1722863437937,-500.0,0.00041094,31]
[334249517,1722863437950,-500.0,0.00041094,31]
[334249518,1722863437960,-540.94093687,0.00041094,31]
[334249519,1722863437970,-6219.56855308,0.00041095,15]
[334249520,1722863437980,-500.0,0.00041095,31]
[334249521,1722863437990,-500.0,0.00041095,31]
[334249523,1722863438000,-500.0,0.00041095,31]
[334249525,1722863438010,-500.0,0.00041095,31]
[334249527,1722863438020,-500.0,0.00041095,31]
[334249528,1722863438030,-500.0,0.00041095,31]
[334249529,1722863438040,-500.0,0.00041095,31]
[334249530,1722863438050,-500.0,0.00041095,31]
[334249531,1722863438059,-500.0,0.00041095,31]
[334249532,1722863438069,-500.0,0.00041095,31]
[334249533,1722863438078,-151.0,0.00041095,14]
[334249534,1722863438088,-500.0,0.00041095,31]
[334249535,1722863438097,-208.073644,0.00041095,14]
[334249536,1722863438106,-622.61,0.00041095,31]
[334249537,1722863438116,-500.0,0.00041095,31]
[334249538,1722863438125,-500.0,0.00041095,31]
[334249539,1722863438135,-151.0,0.00041095,14]
[334249540,1722863438145,-509.0689251,0.00041095,31]
[334249541,1722863438155,-500.0,0.00041095,31]
[334249542,1722863438165,-500.0,0.00041095,31]
[334249543,1722863438175,-500.0,0.00041095,31]
[334249544,1722863438185,-500.0,0.00041095,31]
[334249545,1722863438200,-151.0,0.00041095,14]
[334249546,1722863438210,-151.0,0.00041095,14]
[334249547,1722863438219,-500.0,0.00041095,31]
[334249548,1722863438229,-500.0,0.00041095,31]
[334249549,1722863438239,-151.0,0.00041095,14]
[334249550,1722863438249,-151.0,0.00041095,14]
[334249551,1722863438259,-500.0,0.00041095,31]
[334249552,1722863438268,-572.30403218,0.00041095,31]
[334249553,1722863438278,-500.0,0.00041095,31]
[334249554,1722863438288,-500.0,0.00041095,31]
[334249555,1722863438297,-500.0,0.00041095,31]
[334249556,1722863438307,-151.0,0.00041095,14]
[334249557,1722863438317,-500.0,0.00041095,31]
[334249558,1722863438327,-500.0,0.00041095,31]
[334249559,1722863438336,-341.75426744,0.00041095,31]
[334249560,1722863438346,-500.0,0.00041095,31]
[334249561,1722863438356,-500.0,0.00041095,31]
[334249562,1722863438366,-500.0,0.00041095,31]
[334249563,1722863438376,-500.0,0.00041095,31]
[334249564,1722863438386,-598.34486443,0.00041095,31]
[334249565,1722863438396,-500.0,0.00041095,31]
[334249566,1722863438407,-500.0,0.00041095,31]
[334249567,1722863438418,-500.0,0.00041095,31]
[334249568,1722863438428,-151.0,0.00041095,14]
[334249569,1722863438438,-151.0,0.00041095,14]
[334249570,1722863438462,-151.0,0.00041095,14]
[334249571,1722863438472,-151.0,0.00041095,14]
[334249572,1722863438483,-500.0,0.00041095,31]
[334249573,1722863438493,-500.0,0.00041095,31]
[334249574,1722863438504,-500.0,0.00041095,31]
[334249575,1722863438514,-151.0,0.00041095,14]
[334249576,1722863438524,-151.0,0.00041095,14]
[334249577,1722863438533,-172.269491,0.00041095,14]
[334249578,1722863438543,-516.73,0.00041095,31]
[334249579,1722863438553,-500.0,0.00041095,31]
[334249580,1722863438563,-151.0,0.00041095,14]
[334249581,1722863438573,-159.412187,0.00041095,14]
[334249582,1722863438583,-195.05898127,0.00041095,31]
[334249583,1722863438592,-151.0,0.00041095,14]
[334249584,1722863438601,-151.0,0.00041095,14]
[334249585,1722863438613,-232.277913,0.00041095,14]
[334249586,1722863438623,-500.0,0.00041095,31]
[334249587,1722863438633,-398.469876,0.00041095,14]
[334249588,1722863438642,-398.469876,0.00041095,14]
[334249589,1722863438652,-398.469876,0.00041095,14]
[334249590,1722863438662,-398.469876,0.00041095,14]
[334249591,1722863438674,-500.0,0.00041095,31]
[334249592,1722863438684,-586.4,0.00041095,31]
[334249593,1722863438695,-500.0,0.00041095,31]
[334249594,1722863438705,-500.0,0.00041095,31]
[334249595,1722863438715,-500.0,0.00041095,31]
[334249596,1722863438724,-548.48,0.00041095,31]
[334249597,1722863438734,-798.34,0.00041095,31]
[334249598,1722863438745,-500.0,0.00041095,31]
[334249599,1722863438755,-500.0,0.00041095,31]
[334249600,1722863438765,-255.642026,0.00041095,14]
[334249601,1722863438775,-563.81,0.00041095,31]
[334249602,1722863438785,-255.642026,0.00041095,14]
[334249603,1722863438794,-255.642026,0.00041095,14]
[334249604,1722863438803,-255.642026,0.00041095,14]
[334249605,1722863438813,-500.0,0.00041095,31]
[334249606,1722863438823,-255.642026,0.00041095,14]
[334249607,1722863438832,-255.642026,0.00041095,14]
[334249608,1722863438842,-255.642026,0.00041095,14]
[334249609,1722863438851,-255.642026,0.00041095,14]
[334249610,1722863438860,-500.0,0.00041095,31]
[334249611,1722863438869,-887.54,0.00041095,31]
[334249612,1722863438879,-279.492543,0.00041095,14]
[334249613,1722863438889,-279.492543,0.00041095,14]
[334249614,1722863438899,-279.492543,0.00041095,14]
[334249615,1722863438909,-279.492543,0.00041095,14]
[334249616,1722863438918,-151.0,0.00041095,14]
[334249617,1722863438928,-279.492543,0.00041095,14]
[334249618,1722863438938,-151.0,0.00041095,14]
[334249619,1722863438959,-151.0,0.00041095,14]
[334249620,1722863438968,-151.0,0.00041095,14]
[334249621,1722863438977,-151.0,0.00041095,14]
[334249622,1722863438987,-279.492543,0.00041095,14]
[334249623,1722863438996,-279.492543,0.00041095,14]
[334249624,1722863439005,-279.492543,0.00041095,14]
[334249625,1722863439015,-279.492543,0.00041095,14]
[334249626,1722863439024,-671.83,0.00041095,31]
[334249627,1722863439034,-1000.45045,0.00041095,14]
[334249628,1722863439044,-1000.45045,0.00041095,14]
[334249629,1722863439053,-1000.45045,0.00041095,14]
[334249630,1722863439063,-1000.45045,0.00041095,14]
[334249631,1722863439072,-279.492543,0.00041095,14]
[334249632,1722863439082,-1000.45045,0.00041095,14]
[334249633,1722863439091,-1000.45045,0.00041095,14]
[334249634,1722863439100,-1000.45045,0.00041095,14]
[334249635,1722863439110,-1000.45045,0.00041095,14]
[334249636,1722863439119,-500.0,0.00041095,31]
[334249637,1722863439129,-628.63,0.00041095,31]
[334249638,1722863439138,-216.800958,0.00041095,14]
[334249639,1722863439148,-216.800958,0.00041095,14]
[334249640,1722863439157,-216.800958,0.00041095,14]
[334249641,1722863439167,-500.0,0.00041095,31]
[334249642,1722863439176,-216.800958,0.00041095,14]
[334249643,1722863439186,-216.800958,0.00041095,14]
[334249644,1722863439200,-450.95808636,0.00041095,31]
[334249645,1722863439209,-216.800958,0.00041095,14]
[334249646,1722863439219,-216.800958,0.00041095,14]
[334249647,1722863439238,-216.800958,0.00041095,14]
[334249648,1722863439250,-216.800958,0.00041095,14]
[334249649,1722863439261,-216.800958,0.00041095,14]
[334249650,1722863439270,-519.42,0.00041095,31]
[334249651,1722863439280,-341.82206059,0.00041095,31]
[334249652,1722863439290,-500.0,0.00041095,31]
[334249653,1722863439300,-500.0,0.00041095,31]
[334249654,1722863439310,-500.0,0.00041095,31]
[334249655,1722863439320,-500.0,0.00041095,31]
[334249656,1722863439330,-586.87,0.00041095,31]
[334249657,1722863439340,-500.0,0.00041095,31]
[334249658,1722863439350,-151.0,0.00041095,14]
[334249659,1722863439360,-151.0,0.00041095,14]
[334249660,1722863439370,-151.0,0.00041095,14]
[334249661,1722863439379,-500.0,0.00041095,31]
[334249662,1722863439389,-645.32,0.00041095,31]
[334249663,1722863439398,-500.0,0.00041095,31]
[334249664,1722863439408,-677.84,0.00041095,31]
[334249665,1722863439417,-500.0,0.00041095,31]
[334249666,1722863439427,-2200.020157,0.00041095,14]
[334249667,1722863439437,-2200.020157,0.00041095,14]
[334249668,1722863439450,-2200.020157,0.00041095,14]
[334249669,1722863439461,-2200.020157,0.00041095,14]
[334249670,1722863439471,-2200.020157,0.00041095,14]
[334249671,1722863439481,-500.0,0.00041095,31]
[334249672,1722863439491,-585.41753066,0.00041095,31]
[334249673,1722863439501,-500.0,0.00041095,31]
[334249674,1722863439510,-1667.991617,0.00041095,14]
[334249675,1722863439520,-1667.991617,0.00041095,14]
[334249676,1722863439530,-500.0,0.00041095,31]
[334249677,1722863439540,-1667.991617,0.00041095,14]
[334249678,1722863439549,-2200.020157,0.00041095,14]
[334249679,1722863439559,-1667.991617,0.00041095,14]
[334249680,1722863439569,-2200.020157,0.00041095,14]
[334249681,1722863439578,-2200.020157,0.00041095,14]
[334249682,1722863439588,-2200.020157,0.00041095,14]
[334249683,1722863439598,-1667.991617,0.00041095,14]
[334249684,1722863439609,-2200.020157,0.00041095,14]
[334249685,1722863439619,-1667.991617,0.00041095,14]
[334249686,1722863439629,-1667.991617,0.00041095,14]
[334249687,1722863439638,-1667.991617,0.00041095,14]
[334249688,1722863439649,-500.0,0.00041095,31]
[334249689,1722863439663,-1147.78048134,0.00041095,14]
[334249690,1722863440010,-520.21113566,0.00041095,14]
[334249691,1722863440022,-1667.991617,0.00041095,14]
[334249692,1722863440032,-500.0,0.00041095,31]
[334249693,1722863440043,-500.0,0.00041095,31]
[334249694,1722863440053,-500.0,0.00041095,31]
[334249695,1722863440063,-500.0,0.00041095,31]
[334249696,1722863440074,-281.81190101,0.00041095,14]
[334249697,1722863440096,-550.75793299,0.00041095,14]
[334249698,1722863440106,-832.569834,0.00041095,14]
[334249699,1722863440116,-791.99,0.00041095,31]
[334249700,1722863440126,-832.569834,0.00041095,14]
[334249701,1722863440136,-832.569834,0.00041095,14]
[334249702,1722863440146,-832.569834,0.00041095,14]
[334249703,1722863440157,-429.21235499,0.00041095,14]
[334249704,1722863440170,-313.7065103,0.00041095,14]
[334249705,1722863440499,-89.65096871,0.00041095,14]
[334249706,1722863440509,-500.0,0.00041095,31]
[334249707,1722863440518,-500.0,0.00041095,31]
[334249708,1722863440528,-832.569834,0.00041095,14]
[334249709,1722863440537,-766.51168748,0.00041095,14]
[334249717,1722863441503,-66.05814652,0.00041095,14]
[334249718,1722863441513,-832.569834,0.00041095,14]
[334249719,1722863441522,-832.569834,0.00041095,14]
[334249720,1722863441532,-582.04603108,0.00041095,31]
[334249786,1722863443045,-349.99396892,0.00041095,31]
[334249789,1722863443056,-832.569834,0.00041095,14]
[334249791,1722863443066,-832.569834,0.00041095,14]
[334249793,1722863443075,-362.07317257,0.00041095,31]
[334249795,1722863443085,-831.02,0.00041095,31]
[334249798,1722863443093,-151.0,0.00041095,14]
[334249800,1722863443104,-151.0,0.00041095,14]
[334249804,1722863443113,-151.0,0.00041095,14]
[334249807,1722863443123,-151.0,0.00041095,14]
[334249809,1722863443133,-500.0,0.00041095,31]
[334249812,1722863443142,-628.71,0.00041095,31]
[334249815,1722863443152,-151.0,0.00041095,14]
[334249817,1722863443162,-151.0,0.00041095,14]
[334249819,1722863443171,-151.0,0.00041095,14]
[334249821,1722863443181,-151.0,0.00041095,14]
[334249823,1722863443190,-500.0,0.00041095,31]
[334249825,1722863443207,-507.096032,0.00041095,14]
[334249827,1722863443217,-507.096032,0.00041095,14]
[334249829,1722863443226,-507.096032,0.00041095,14]
[334249831,1722863443236,-507.096032,0.00041095,14]
[334249833,1722863443246,-151.0,0.00041095,14]
[334249835,1722863443255,-507.096032,0.00041095,14]
[334249838,1722863443264,-507.096032,0.00041095,14]
[334249839,1722863443274,-151.0,0.00041095,14]
[334249842,1722863443283,-507.096032,0.00041095,14]
[334249844,1722863443293,-151.0,0.00041095,14]
[334249846,1722863443303,-507.096032,0.00041095,14]
[334249848,1722863443312,-151.0,0.00041095,14]
[334249850,1722863443326,-188.527882,0.00041095,14]
[334249852,1722863443336,-382.605056,0.00041095,14]
[334249854,1722863443346,-382.605056,0.00041095,14]
[334249856,1722863443356,-507.096032,0.00041095,14]
[334249858,1722863443366,-382.605056,0.00041095,14]
[334249860,1722863443376,-507.096032,0.00041095,14]
[334249862,1722863443386,-500.0,0.00041095,31]
[334249864,1722863443396,-382.605056,0.00041095,14]
[334249866,1722863443406,-507.096032,0.00041095,14]
[334249868,1722863443416,-382.605056,0.00041095,14]
[334249870,1722863443426,-507.096032,0.00041095,14]
[334249872,1722863443435,-382.605056,0.00041095,14]
[334249874,1722863443451,-500.0,0.00041095,31]
[334249876,1722863443461,-507.096032,0.00041095,14]
[334249878,1722863443471,-382.605056,0.00041095,14]
[334249880,1722863443481,-507.096032,0.00041095,14]
[334249882,1722863443491,-382.605056,0.00041095,14]
[334249884,1722863443501,-507.096032,0.00041095,14]
[334249886,1722863443510,-563.32,0.00041095,31]
[334249888,1722863443520,-507.096032,0.00041095,14]
[334249890,1722863443529,-382.605056,0.00041095,14]
[334249892,1722863443538,-382.605056,0.00041095,14]
[334249893,1722863443549,-382.605056,0.00041095,14]
[334249895,1722863443558,-382.605056,0.00041095,14]
[334249897,1722863443568,-382.605056,0.00041095,14]
[334249898,1722863443578,-382.605056,0.00041095,14]
[334249900,1722863443587,-382.605056,0.00041095,14]
[334249902,1722863443596,-382.605056,0.00041095,14]
[334249904,1722863443607,-488.11377365,0.00041095,31]
[334249932,1722863537396,2098.11407433,0.00025,30]
[334249933,1722863537418,411.73454884,0.00025,30]
[334249971,1722864350135,-157.842545,0.00014247,2]
[334249972,1722864350161,-79.56977688,0.0002,2]
[334249983,1722864427109,-188.38690797,0.00019547,3]
[334249984,1722864434121,-157.842545,0.00014247,2]
[334249985,1722864434145,-1609.73100828,0.00019547,3]
[334249986,1722864434168,-76.78337866,0.0002,2]
[334249987,1722864434190,-154.82195475,0.0002142,2]
[334249988,1722864434212,-302.39527296,0.00022,2]
[334249989,1722864434233,-302.39527296,0.0002222,2]
[334249990,1722864434256,-8.5347087,0.0002244,2]
[334249991,1722864434291,-293.86056426,0.0002244,2]
[334249992,1722864434312,-302.39527296,0.0002266,2]
[334249993,1722864434333,-302.39527296,0.0002288,2]
[334249994,1722864434354,-453.59290944,0.000231,4]
[334249995,1722864434376,-453.59290944,0.0002332,4]
[334249996,1722864434398,-453.59290944,0.0002354,4]
[334249997,1722864434421,-453.59290944,0.0002376,4]
[334249998,1722864434443,-451.70784017,0.0002398,4]
[334249999,1722864434466,-250.0,0.000316,2]
[334250000,1722864434490,-300.0,0.00031843,2]
[334250001,1722864434513,-7300.6516,0.00031844,2]
[334250002,1722864434543,-169.221072,0.00032869,2]
[334250003,1722864434567,-161.279722,0.00032882,2]
[334250004,1722864434590,-161.279722,0.00033453,2]
[334250005,1722864434613,-161.279722,0.00034024,2]
[334250006,1722864434637,-161.279722,0.00034595,2]
[334250007,1722864434660,-157.842545,0.00034703,2]
[334250008,1722864434684,-207.0130742,0.00039644,2]
[334250009,1722864434706,-150.5,0.0003997,120]
[334250010,1722864434729,-150.5,0.0003997,120]
[334250011,1722864434751,-150.5,0.0003998,120]
[334250012,1722864434774,-150.5,0.0003998,120]